fUSD/lending_fUSD_20250416
["ID","MTS","AMOUNT","RATE_DAILY","PERIOD"]
[358184670,1744822252448,-173.65999972,0.00045022,2]
[358184671,1744822252458,-2054.27233781,0.00045022,120]
[358184672,1744822252473,-231.0434738,0.00045022,120]
[358184673,1744822252483,-6000.0,0.00045022,2]
[358184674,1744822252492,-375.22199702,0.00045022,2]
[358184675,1744822252501,-1469.74960158,0.00045022,2]
[358184676,1744822252511,-1032.89992486,0.00045022,2]
[358184677,1744822252520,-3554.2879086,0.00045022,120]
[358184678,1744822252530,-562.8656746,0.00045022,2]
[358184679,1744822252539,-2746.91236225,0.00045022,120]
[358184680,1744822252549,-410.67299486,0.00045022,120]
[358184681,1744822252560,-150.0,0.00045022,2]
[358184682,1744822252569,-520.66118126,0.00045022,30]
[358184683,1744822252579,-3176.05570625,0.00045022,120]
[358184684,1744822252587,-3095.92795918,0.00045022,30]
[358184685,1744822252597,-1087.33835649,0.00045022,120]
[358184686,1744822252606,-3956.23679569,0.00045022,120]
[358184687,1744822252615,-7766.04609297,0.00045022,2]
[358184688,1744822252625,-684.4390737,0.00045022,30]
[358184689,1744822252634,-502.26250433,0.00045022,30]
[358184690,1744822252643,-625.98134476,0.00045022,2]
[358184691,1744822252653,-214.59143421,0.00045022,2]
[358184692,1744822252662,-2651.52105803,0.00045022,30]
[358184693,1744822252671,-164146.761343,0.00045022,2]
[358184694,1744822252681,-839.20845678,0.00045022,120]
[358184695,1744822252690,-449.96576622,0.00045022,2]
[358184696,1744822252699,-1067.08842285,0.00045022,2]
[358184697,1744822252708,-21270.92975714,0.00045022,2]
[358184698,1744822252719,-2500.0,0.00045022,2]
[358184699,1744822252728,-579.29864002,0.00045022,2]
[358184700,1744822252737,-473.53591421,0.00045022,30]
[358184701,1744822252746,-342.20714435,0.00045022,2]
[358184702,1744822252755,-2903.57259422,0.00045022,30]
[358184703,1744822252764,-1415.32751741,0.00045022,2]
[358184704,1744822252773,-1100.0,0.00045022,2]
[358184705,1744822252783,-956.43549048,0.00045022,120]
[358184706,1744822252792,-2636.22463849,0.00045022,120]
[358184707,1744822252803,-382.97846044,0.00045022,120]
[358184708,1744822252812,-912.19376563,0.00045022,2]
[358184709,1744822252821,-229.36208724,0.00045022,60]
[358184710,1744822252831,-15585.39055967,0.00045022,2]
[358184711,1744822252840,-481.59099768,0.00045022,2]
[358184712,1744822252849,-170.23898077,0.00045022,2]
[358184713,1744822252862,-229.58133316,0.00045022,2]
[358184714,1744822252872,-889.55357607,0.00045022,30]
[358184715,1744822252881,-878.12970696,0.00045022,120]
[358184716,1744822252890,-1586.08693816,0.00045022,2]
[358184717,1744822252901,-1677.36198107,0.00045022,30]
[358184718,1744822252910,-2306.93542742,0.00045022,120]
[358184719,1744822252919,-547.58431292,0.00045022,2]
[358184720,1744822252929,-5005.31712519,0.00045022,2]
[358184721,1744822252938,-1011.23441537,0.00045022,2]
[358184722,1744822252947,-451.99380498,0.00045022,120]
[358184723,1744822252956,-406.50723009,0.00045022,120]
[358184724,1744822252965,-1003.90809911,0.00045022,120]
[358184725,1744822252975,-740.85306146,0.00045022,120]
[358184726,1744822252984,-364.60738642,0.00045022,2]
[358184727,1744822252994,-260.26330927,0.00045022,60]
[358184728,1744822253003,-2204.34395199,0.00045022,2]
[358184729,1744822253013,-1200.59129159,0.00045022,38]
[358184730,1744822253022,-283.54536169,0.00045022,2]
[358184731,1744822253032,-2041.74899799,0.00045022,120]
[358184732,1744822253042,-2450.30322265,0.00045022,30]
[358184733,1744822253051,-675.10301762,0.00045022,30]
[358184734,1744822253061,-2284.45174166,0.00045022,120]
[358184735,1744822253070,-5519.62773723,0.00045022,120]
[358184736,1744822253079,-1549.09315886,0.00045022,120]
[358184737,1744822253089,-211.0729599,0.00045022,30]
[358184738,1744822253098,-2707.06445296,0.00045022,30]
[358184739,1744822253108,-14765.81754561,0.00045022,2]
[358184740,1744822253117,-766.0244145,0.00045022,60]
[358184741,1744822253127,-205.15031712,0.00045022,31]
[358184742,1744822253136,-1769.43561639,0.00045022,30]
[358184743,1744822253145,-2339.48254045,0.00045022,30]
[358184744,1744822253155,-1457.29636348,0.00045022,120]
[358184745,1744822253164,-227.31118465,0.00045022,120]
[358184746,1744822253174,-1835.65472045,0.00045022,2]
[358184747,1744822253183,-1471.98300638,0.00045022,30]
[358184748,1744822253192,-1577.78294659,0.00045022,120]
[358184749,1744822253201,-1116.97789212,0.00045022,2]
[358184750,1744822253209,-1300.01039758,0.00045022,120]
[358184751,1744822253220,-1103.76317395,0.00045022,120]
[358184752,1744822253229,-2551.65059021,0.00045022,2]
[358184753,1744822253238,-2208.9254657,0.00045022,30]
[358184754,1744822253247,-653.81714265,0.00045022,120]
[358184755,1744822253256,-500.0,0.00045022,2]
[358184756,1744822253264,-220.18556453,0.00045022,2]
[358184757,1744822253273,-14056.68573126,0.00045022,2]
[358184758,1744822253283,-20228.23933895,0.00045022,2]
[358184759,1744822253293,-983.45146105,0.00045022,120]
[358184760,1744822253302,-326.99179587,0.00045022,120]
[358184761,1744822253311,-3162.92788192,0.00045022,30]
[358184762,1744822253321,-211.71829703,0.00045022,120]
[358184763,1744822253330,-1704.64549355,0.00045022,2]
[358184764,1744822253340,-263.61003053,0.00045022,30]
[358184765,1744822253348,-1429.75933843,0.00045022,2]
[358184766,1744822253359,-2013.63499852,0.00045022,120]
[358184767,1744822253368,-5390.20615237,0.00045022,2]
[358184768,1744822253377,-509.62084661,0.00045022,120]
[358184769,1744822253387,-202.60071722,0.00045022,2]
[358184770,1744822253396,-207.95087519,0.00045022,120]
[358184771,1744822253405,-607.50197401,0.00045022,120]
[358184772,1744822253415,-429.54949844,0.00045022,30]
[358184773,1744822253424,-1503.83171512,0.00045022,120]
[358184774,1744822253434,-282.45241992,0.00045022,2]
[358184775,1744822253443,-5678.68140916,0.00045022,2]
[358184776,1744822253452,-751.1093346,0.00045022,2]
[358184777,1744822253462,-1012.48426148,0.00045022,2]
[358184778,1744822253473,-162.91,0.00045022,2]
[358184779,1744822253482,-161.56764244,0.00045022,2]
[358184780,1744822253491,-2171.191114,0.00045022,2]
[358184781,1744822253501,-871.63869802,0.00045022,2]
[358184782,1744822253510,-1444.92883514,0.00045022,30]
[358184783,1744822253519,-150.0,0.00045022,2]
[358184784,1744822253528,-30000.0,0.00045022,2]
[358184785,1744822253537,-7475.34606465,0.00045022,2]
[358184786,1744822253547,-463.82352202,0.00045022,2]
[358184787,1744822253558,-99591.93996264,0.00045022,2]
[358184788,1744822253567,-560.09924028,0.00045022,10]
[358184789,1744822253579,-899.03383904,0.00045022,2]
[358184790,1744822253588,-1294.0,0.00045022,120]
[358184791,1744822253597,-2070.1949188,0.00045022,120]
[358184792,1744822253607,-387.0,0.00045022,30]
[358184793,1744822253616,-570.80168865,0.00045022,120]
[358184794,1744822253626,-866.94621034,0.00045022,120]
[358184795,1744822253635,-10000.0,0.00045022,30]
[358184796,1744822253644,-1000.0,0.00045022,30]
[358184797,1744822253653,-4159.60268648,0.00045022,90]
[358184798,1744822253662,-9326.42012197,0.00045022,10]
[358184799,1744822253671,-500.0,0.00045022,10]
[358184800,1744822253681,-273.99683216,0.00045022,10]
[358184801,1744822253691,-498.76715643,0.00045022,2]
[358184802,1744822253699,-996.52064059,0.00045022,120]
[358184803,1744822253709,-150.0,0.00045042,15]
[358184804,1744822253719,-1717.9464,0.00045088,30]
[358184805,1744822253729,-529.1,0.00045205,120]
[358184806,1744822253738,-2000.0,0.00045205,120]
[358184807,1744822253747,-300.0,0.00045205,30]
[358184808,1744822253756,-1717.9464,0.00045288,30]
[358184809,1744822253766,-1011.37937818,0.00045321,30]
[358184810,1744822253775,-1717.9464,0.00045488,30]
[358184811,1744822253785,-1717.9464,0.00045688,30]
[358184812,1744822253794,-234.33713,0.000457,120]
[358184813,1744822253803,-199.46739962,0.000457,120]
[358184814,1744822253813,-1717.9464,0.00045888,30]
[358184815,1744822253822,-3808.76401348,0.000459,119]
[358184816,1744822253831,-1189.71,0.0004598,120]
[358184817,1744822253841,-340.87,0.0004598,120]
[358184818,1744822253850,-1183.0,0.0004599,120]
[358184819,1744822253864,-333.0,0.0004599,120]
[358184820,1744822253874,-1225.85622366,0.00046,120]
[358184821,1744822253883,-655.433311,0.00046,60]
[358184822,1744822253893,-487.63538721,0.00046,120]
[358184823,1744822253906,-1000.0,0.00046,30]
[358184824,1744822253915,-3086.09406088,0.00046,30]
[358184825,1744822253924,-1427.00422164,0.00046,120]
[358184826,1744822253934,-2167.36552585,0.00046,120]
[358184827,1744822253943,-2340.16,0.00046,120]
[358184828,1744822253953,-3085.68,0.00046,120]
[358184829,1744822253963,-1674.62,0.00046,120]
[358184830,1744822253974,-294.9918264,0.00046022,120]
[358184831,1744822253989,-1717.9464,0.00046088,30]
[358184832,1744822253998,-257.91778498,0.00046187,2]
[358184833,1744822254008,-1717.9464,0.00046288,30]
[358184834,1744822254018,-1717.9464,0.00046488,30]
[358184835,1744822254029,-529.1,0.00046575,120]
[358184836,1744822254038,-3825.348,0.00046575,120]
[358184837,1744822254048,-1717.9464,0.00046688,30]
[358184838,1744822254058,-351.8,0.0004676,2]
[358184839,1744822254068,-9974.62284783,0.000468,120]
[358184840,1744822254077,-1717.9464,0.00046888,30]
[358184841,1744822254087,-234.33713,0.000469,120]
[358184842,1744822254097,-425.01,0.00046986,120]
[358184843,1744822254108,-591.86065073,0.00047,30]
[358184844,1744822254117,-197.89589725,0.00047,120]
[358184845,1744822254127,-212.61553637,0.00047,120]
[358184846,1744822254136,-687.38620993,0.000475,30]
[358184847,1744822254146,-218.89986069,0.000475,120]
[358184848,1744822254156,-267.46074303,0.00047556,2]
[358184849,1744822254166,-5240.56567542,0.000476,2]
[358184850,1744822254175,-3456.14897215,0.000478,2]
[358184851,1744822254185,-2708.64434508,0.000479,120]
[358184852,1744822254198,-150.0,0.00047938,30]
[358184853,1744822254207,-2318.01759281,0.00047938,30]
[358184854,1744822254217,-529.1,0.00047945,120]
[358184855,1744822254227,-2000.0,0.00047945,120]
[358184856,1744822254237,-2000.0,0.00048,8]
[358184857,1744822254246,-1033.03593176,0.00048,120]
[358184858,1744822254257,-1427.00422164,0.00048,120]
[358184859,1744822254267,-2167.36552585,0.00048,120]
[358184860,1744822254276,-2000.0,0.00048,120]
[358184861,1744822254286,-1000.0,0.00048,120]
[358184862,1744822254295,-234.33713,0.000481,120]
[358184863,1744822254305,-500.0,0.00048493,120]
[358184864,1744822254314,-1036.56259036,0.000485,120]
[358184865,1744822254323,-340.41740676,0.000486,120]
[358184866,1744822254333,-500.0,0.000486,120]
[358184867,1744822254343,-643.66116395,0.000488,120]
[358184868,1744822254353,-8672.08895176,0.000488,120]
[358184869,1744822254364,-3836.43782659,0.000489,60]
[358184870,1744822254374,-277.35679052,0.00048925,2]
[358184871,1744822254384,-1844.8702083,0.00049,120]
[358184872,1744822254393,-618.30681936,0.00049,120]
[358184873,1744822254403,-761.01889032,0.00049,30]
[358184874,1744822254413,-340.09037186,0.00049,30]
[358184875,1744822254422,-337.96625466,0.00049,120]
[358184876,1744822254432,-351.8,0.00049024,2]
[358184877,1744822254442,-758.44,0.00049098,30]
[358184878,1744822254451,-2654.87,0.00049117,30]
[358184879,1744822254460,-3312.65,0.00049122,30]
[358184880,1744822254470,-234.33713,0.000493,120]
[358184881,1744822254480,-3098.42515996,0.00049315,120]
[358184882,1744822254490,-529.1,0.00049315,120]
[358184883,1744822254500,-1000.0,0.00049315,120]
[358184884,1744822254510,-653.78,0.00049315,60]
[358184885,1744822254519,-300.0,0.00049315,30]
[358184886,1744822254528,-4000.0,0.00049315,30]
[358184887,1744822254538,-1000.0,0.00049342,120]
[358184888,1744822254547,-643.09,0.00049352,30]
[358184889,1744822254557,-903.03756128,0.00049369,120]
[358184890,1744822254566,-327.66,0.000494,45]
[358184891,1744822254576,-327.66,0.000494,45]
[358184892,1744822254586,-327.66,0.000494,45]
[358184893,1744822254595,-327.66,0.000494,45]
[358184894,1744822254605,-327.66,0.000494,45]
[358184895,1744822254615,-327.66,0.000494,45]
[358184896,1744822254624,-327.66,0.000494,45]
[358184897,1744822254633,-327.66,0.000494,45]
[358184898,1744822254643,-327.66,0.000494,45]
[358184899,1744822254652,-327.66,0.000494,45]
[358184900,1744822254662,-327.66,0.000494,45]
[358184901,1744822254671,-327.66,0.000494,45]
[358184902,1744822254680,-327.66,0.000494,45]
[358184903,1744822254689,-327.66,0.000494,45]
[358184904,1744822254698,-327.66,0.000494,45]
[358184905,1744822254708,-327.66,0.000494,45]
[358184906,1744822254717,-327.66,0.000494,45]
[358184907,1744822254726,-327.66,0.000494,45]
[358184908,1744822254735,-327.66,0.000494,45]
[358184909,1744822254744,-327.66,0.000494,45]
[358184910,1744822254754,-327.66,0.000494,45]
[358184911,1744822254763,-327.66,0.000494,45]
[358184912,1744822254773,-327.66,0.000494,45]
[358184913,1744822254782,-327.66,0.000494,45]
[358184914,1744822254793,-1000.0,0.00049401,120]
[358184915,1744822254804,-392.16,0.00049484,30]
[358184916,1744822254815,-1707.08313578,0.000495,120]
[358184917,1744822254825,-2146.35,0.0004956,30]
[358184918,1744822254836,-797.44,0.00049604,30]
[358184919,1744822254848,-1274.20077499,0.0004969,120]
[358184920,1744822254860,-529.42166448,0.0004977,120]
[358184921,1744822254869,-1191.6012716,0.000498,30]
[358184922,1744822254878,-2652.27,0.0004993,30]
[358184923,1744822254887,-343.6,0.00049943,30]
[358184924,1744822254897,-349.47,0.00049943,30]
[358184925,1744822254907,-150.0,0.00049943,30]
[358184926,1744822254916,-1094.78820207,0.0004995,60]
[358184927,1744822254927,-42790.13294484,0.0004999,2]
[358184928,1744822254937,-134592.82756475,0.00049998,120]
[358184929,1744822254946,-171.05826783,0.00049999,120]
[358184930,1744822254956,-1000.0,0.0005,30]
[358184931,1744822254965,-1000.0,0.0005,30]
[358184932,1744822254975,-2240.0,0.0005,120]
[358184933,1744822254985,-2638.05643453,0.0005,5]
[358184934,1744822254995,-2993.1549986,0.0005,120]
[358184935,1744822255005,-686.55430536,0.0005,30]
[358184936,1744822255015,-237.0540667,0.0005,120]
[358184937,1744822255024,-1621.80525859,0.0005,120]
[358184938,1744822255034,-923.17255915,0.0005,120]
[358184939,1744822255043,-1640.31532776,0.0005,120]
[358184940,1744822255053,-804.4602142,0.0005,120]
[358184941,1744822255063,-194.31432916,0.0005,30]
[358184942,1744822255072,-3318.05588673,0.0005,120]
[358184943,1744822255082,-1432.74860111,0.0005,120]
[358184944,1744822255091,-460.31213882,0.0005,2]
[358184945,1744822255101,-1137.85323837,0.0005,2]
[358184946,1744822255110,-750.02637967,0.0005,120]
[358184947,1744822255120,-1714.29365579,0.0005,30]
[358184948,1744822255130,-1517.62233279,0.0005,2]
[358184949,1744822255139,-213.45644292,0.0005,120]
[358184950,1744822255149,-1147.80737027,0.0005,30]
[358184951,1744822255159,-726.51545803,0.0005,120]
[358184952,1744822255169,-500.0,0.0005,30]
[358184953,1744822255179,-1034.7515856,0.0005,120]
[358184954,1744822255189,-240.55706314,0.0005,120]
[358184955,1744822255199,-584.85558217,0.0005,120]
[358184956,1744822255208,-599.18041941,0.0005,120]
[358184957,1744822255217,-157.55735363,0.0005,30]
[358184958,1744822255227,-2000.0,0.0005,120]
[358184959,1744822255236,-2000.0,0.0005,120]
[358184960,1744822255245,-15000.0,0.0005,30]
[358184961,1744822255255,-1000000.0,0.0005,120]
[358184962,1744822255264,-1000000.0,0.0005,120]
[358184963,1744822255274,-31663.19000003,0.0005,30]
[358184964,1744822255283,-500.0,0.00050001,120]
[358184965,1744822255293,-287.61899177,0.00050294,2]
[358184966,1744822255302,-234.33713,0.000505,120]
[358184967,1744822255311,-529.1,0.00050684,120]
[358184968,1744822255321,-1000.0,0.00050803,120]
[358184969,1744822255330,-1000000.0,0.00051,120]
[358184970,1744822255340,-1000000.0,0.00051,120]
[358184971,1744822255349,-1000000.0,0.00051,120]
[358184972,1744822255359,-351.8,0.00051288,2]
[358184973,1744822255370,-500.0,0.00051403,120]
[358184974,1744822255379,-298.26089446,0.00051663,2]
[358184975,1744822255390,-234.33713,0.000517,120]
[358184976,1744822255401,-425.01,0.00051877,120]
[358184977,1744822255411,-794.0,0.00052,12]
[358184978,1744822255421,-151.0,0.00052,120]
[358184979,1744822255430,-472.79704404,0.00052,120]
[358184980,1744822255440,-1438.92851133,0.00052,120]
[358184981,1744822255450,-2914.8968374,0.00052,40]
[358184982,1744822255459,-1000000.0,0.00052,120]
[358184983,1744822255470,-1000000.0,0.00052,120]
[358184984,1744822255479,-2000.0,0.00052,8]
[358184985,1744822255489,-350.0,0.00052023,120]
[358184986,1744822255499,-1040.49218114,0.00052034,120]
[358184987,1744822255508,-2000.0,0.00052054,120]
[358184988,1744822255519,-529.1,0.00052054,120]
[358184989,1744822255528,-536.0,0.00052055,120]
[358184990,1744822255538,-1000.0,0.00052204,120]
[358184991,1744822255547,-474.46006632,0.00052327,120]
[358184992,1744822255557,-514.19846962,0.00052328,120]
[358184993,1744822255567,-2000.0,0.00052328,120]
[358184994,1744822255577,-1972.00532496,0.0005233,120]
[358184995,1744822255587,-3000.0,0.00052601,120]
[358184996,1744822255597,-2000.0,0.00052602,120]
[358184997,1744822255607,-500.0,0.00052804,120]
[358184998,1744822255616,-3000.0,0.00052875,120]
[358184999,1744822255626,-2000.0,0.00052876,120]
[358185000,1744822255635,-234.33716,0.000529,120]
[358185001,1744822255645,-1000.0,0.00053,12]
[358185002,1744822255655,-575.9270907,0.00053,2]
[358185003,1744822255664,-2408.07474782,0.00053,120]
[358185004,1744822255674,-1000000.0,0.00053,120]
[358185005,1744822255683,-1000000.0,0.00053,120]
[358185006,1744822255693,-309.29654756,0.00053032,2]
[358185007,1744822255702,-2000.0,0.0005315,120]
[358185008,1744822255712,-446.43865689,0.0005331,2]
[358185009,1744822255722,-2000.0,0.00053424,120]
[358185010,1744822255732,-500.0,0.00053424,30]
[358185011,1744822255742,-529.19,0.00053424,120]
[358185012,1744822255752,-249.82502663,0.00053535,120]
[358185013,1744822255762,-351.8,0.00053552,2]
[358185014,1744822255772,-1000.0,0.00053605,120]
[358185015,1744822255782,-3020.06721336,0.000537,120]
[358185016,1744822255792,-260.95,0.000538,120]
[358185017,1744822255801,-500.0,0.00053972,32]
[358185018,1744822255811,-1000.0,0.00054,30]
[358185019,1744822255821,-1000.0,0.00054,30]
[358185020,1744822255831,-1191.40957999,0.00054,120]
[358185021,1744822255840,-4372.35959212,0.00054,30]
[358185022,1744822255850,-179.73627594,0.00054,120]
[358185023,1744822255864,-3420.0,0.00054,120]
[358185024,1744822255874,-759.49,0.00054,120]
[358185025,1744822255883,-1000000.0,0.00054,120]
[358185026,1744822255894,-500.0,0.00054205,120]
[358185027,1744822255904,-320.74051982,0.00054401,2]
[358185028,1744822255914,-500.0,0.0005452,34]
[358185029,1744822255924,-327.66,0.000547,54]
[358185030,1744822255936,-327.66,0.000547,54]
[358185031,1744822255947,-327.66,0.000547,54]
[358185032,1744822255959,-327.66,0.000547,54]
[358185033,1744822255970,-327.66,0.000547,54]
[358185034,1744822255980,-327.66,0.000547,54]
[358185035,1744822255990,-327.66,0.000547,54]
[358185036,1744822256000,-327.66,0.000547,54]
[358185037,1744822256184,-327.66,0.000547,54]
[358185038,1744822256195,-327.66,0.000547,54]
[358185039,1744822256205,-327.66,0.000547,54]
[358185040,1744822256215,-327.66,0.000547,54]
[358185041,1744822256226,-327.66,0.000547,54]
[358185042,1744822256235,-327.66,0.000547,54]
[358185043,1744822256244,-327.66,0.000547,54]
[358185044,1744822256254,-327.66,0.000547,54]
[358185045,1744822256263,-2600.07038377,0.00054748,31]
[358185046,1744822256273,-957.20738872,0.0005478,120]
[358185047,1744822256283,-163.60689861,0.0005479,120]
[358185048,1744822256295,-163.60689861,0.0005479,120]
[358185049,1744822256309,-163.60689861,0.0005479,120]
[358185050,1744822256319,-163.60689861,0.0005479,120]
[358185051,1744822256329,-163.60689861,0.0005479,120]
[358185052,1744822256337,-163.6,0.0005479,120]
[358185053,1744822256346,-152.69977204,0.0005479,120]
[358185054,1744822256356,-152.69977204,0.0005479,120]
[358185055,1744822256367,-152.69977204,0.0005479,120]
[358185056,1744822256377,-152.69977204,0.0005479,120]
[358185057,1744822256386,-152.69977204,0.0005479,120]
[358185058,1744822256395,-152.69977204,0.0005479,120]
[358185059,1744822256405,-152.69977204,0.0005479,120]
[358185060,1744822256414,-152.69977204,0.0005479,120]
[358185061,1744822256424,-152.69977204,0.0005479,120]
[358185062,1744822256433,-152.69977204,0.0005479,120]
[358185063,1744822256442,-152.69977204,0.0005479,120]
[358185064,1744822256451,-152.69977204,0.0005479,120]
[358185065,1744822256460,-152.69977204,0.0005479,120]
[358185066,1744822256470,-152.69977204,0.0005479,120]
[358185067,1744822256479,-152.69,0.0005479,120]
[358185068,1744822256488,-231.9296266,0.0005479,120]
[358185069,1744822256498,-231.9296266,0.0005479,120]
[358185070,1744822256507,-231.9296266,0.0005479,120]
[358185071,1744822256516,-231.9296266,0.0005479,120]
[358185072,1744822256525,-231.9296266,0.0005479,120]
[358185073,1744822256535,-231.9296266,0.0005479,120]
[358185074,1744822256544,-231.9296266,0.0005479,120]
[358185075,1744822256553,-231.9296266,0.0005479,120]
[358185076,1744822256563,-231.9296266,0.0005479,120]
[358185077,1744822256572,-231.9296266,0.0005479,120]
[358185078,1744822256581,-231.9296266,0.0005479,120]
[358185079,1744822256591,-231.9296266,0.0005479,120]
[358185080,1744822256600,-231.9296266,0.0005479,120]
[358185081,1744822256609,-231.9296266,0.0005479,120]
[358185082,1744822256618,-231.9296266,0.0005479,120]
[358185083,1744822256627,-231.9296266,0.0005479,120]
[358185084,1744822256637,-231.9296266,0.0005479,120]
[358185085,1744822256646,-231.9296266,0.0005479,120]
[358185086,1744822256655,-231.9296266,0.0005479,120]
[358185087,1744822256665,-231.92,0.0005479,120]
[358185088,1744822256675,-541.16912874,0.0005479,120]
[358185089,1744822256684,-541.16912874,0.0005479,120]
[358185090,1744822256693,-541.16912874,0.0005479,120]
[358185091,1744822256703,-541.16912874,0.0005479,120]
[358185092,1744822256713,-541.16912874,0.0005479,120]
[358185093,1744822256724,-541.16912874,0.0005479,120]
[358185094,1744822256733,-541.16912874,0.0005479,120]
[358185095,1744822256743,-541.16912874,0.0005479,120]
[358185096,1744822256753,-541.16912874,0.0005479,120]
[358185097,1744822256762,-541.16912874,0.0005479,120]
[358185098,1744822256772,-541.16912874,0.0005479,120]
[358185099,1744822256781,-541.16912874,0.0005479,120]
[358185100,1744822256791,-541.16912874,0.0005479,120]
[358185101,1744822256800,-541.16912874,0.0005479,120]
[358185102,1744822256810,-541.16912874,0.0005479,120]
[358185103,1744822256819,-541.16912874,0.0005479,120]
[358185104,1744822256829,-541.16912874,0.0005479,120]
[358185105,1744822256839,-541.16912874,0.0005479,120]
[358185106,1744822256848,-541.16912874,0.0005479,120]
[358185107,1744822256861,-541.16,0.0005479,120]
[358185108,1744822256871,-246.56607106,0.0005479,120]
[358185109,1744822256880,-246.56607106,0.0005479,120]
[358185110,1744822256889,-246.56607106,0.0005479,120]
[358185111,1744822256901,-246.56607106,0.0005479,120]
[358185112,1744822256910,-246.56607106,0.0005479,120]
[358185113,1744822256920,-246.56607106,0.0005479,120]
[358185114,1744822256929,-246.56607106,0.0005479,120]
[358185115,1744822256941,-246.56607106,0.0005479,120]
[358185116,1744822256951,-246.56607106,0.0005479,120]
[358185117,1744822256961,-246.56607106,0.0005479,120]
[358185118,1744822256972,-246.56607106,0.0005479,120]
[358185119,1744822256982,-246.56607106,0.0005479,120]
[358185120,1744822256991,-246.56607106,0.0005479,120]
[358185121,1744822257001,-246.56607106,0.0005479,120]
[358185122,1744822257010,-246.56607106,0.0005479,120]
[358185123,1744822257020,-246.56607106,0.0005479,120]
[358185124,1744822257031,-246.56607106,0.0005479,120]
[358185125,1744822257040,-246.56607106,0.0005479,120]
[358185126,1744822257050,-246.56607106,0.0005479,120]
[358185127,1744822257059,-246.56,0.0005479,120]
[358185128,1744822257068,-575.32083248,0.0005479,120]
[358185129,1744822257078,-575.32083248,0.0005479,120]
[358185130,1744822257087,-575.32083248,0.0005479,120]
[358185131,1744822257097,-575.32083248,0.0005479,120]
[358185132,1744822257107,-575.32083248,0.0005479,120]
[358185133,1744822257116,-575.32083248,0.0005479,120]
[358185134,1744822257126,-575.32083248,0.0005479,120]
[358185135,1744822257135,-575.32083248,0.0005479,120]
[358185136,1744822257146,-575.32083248,0.0005479,120]
[358185137,1744822257155,-575.32083248,0.0005479,120]
[358185138,1744822257164,-575.32083248,0.0005479,120]
[358185139,1744822257175,-575.32083248,0.0005479,120]
[358185140,1744822257184,-575.32083248,0.0005479,120]
[358185141,1744822257194,-575.32083248,0.0005479,120]
[358185142,1744822257203,-575.32083248,0.0005479,120]
[358185143,1744822257212,-575.32083248,0.0005479,120]
[358185144,1744822257226,-575.32083248,0.0005479,120]
[358185145,1744822257237,-575.32083248,0.0005479,120]
[358185146,1744822257247,-575.32083248,0.0005479,120]
[358185147,1744822257257,-575.32,0.0005479,120]
[358185148,1744822257267,-272.51006537,0.00054794,120]
[358185149,1744822257277,-500.0,0.00054794,120]
[358185150,1744822257287,-500.0,0.00054794,120]
[358185151,1744822257297,-526.78417492,0.00054794,120]
[358185152,1744822257306,-500.0,0.00054794,120]
[358185153,1744822257316,-500.0,0.00054794,120]
[358185154,1744822257326,-504.25380139,0.00054794,120]
[358185155,1744822257335,-287.31252751,0.00054794,120]
[358185156,1744822257345,-500.0,0.00054794,120]
[358185157,1744822257354,-500.0,0.00054794,2]
[358185158,1744822257365,-606.96984243,0.00054794,120]
[358185159,1744822257375,-500.0,0.00054794,120]
[358185160,1744822257385,-500.0,0.00054794,120]
[358185161,1744822257394,-513.15,0.00054794,120]
[358185162,1744822257404,-500.0,0.00054794,120]
[358185163,1744822257414,-500.0,0.00054794,16]
[358185164,1744822257423,-500.0,0.00054794,120]
[358185165,1744822257432,-500.0,0.00054794,120]
[358185166,1744822257442,-521.00786112,0.00054794,120]
[358185167,1744822257451,-229.22564113,0.00054794,120]
[358185168,1744822257461,-500.0,0.00054794,120]
[358185169,1744822257473,-7525.2,0.00054794,120]